fUSD/lending_fUSD_20240519
["ID","MTS","AMOUNT","RATE_DAILY","PERIOD"]
[327520273,1716150642912,-7517.87605167,0.00012455,2]
[327520274,1716150642923,-1122.99897418,0.00012455,2]
[327520275,1716150642933,-5996.34097415,0.00013,2]
[327520294,1716150645605,-2281.24352085,0.00013,2]
[327520295,1716150645617,-129385.732119,0.00013,2]
[327520296,1716150645674,-269.66317705,0.00012455,2]
[327520297,1716150645684,-976691.40507376,0.00013,2]
[327520298,1716150645743,-6634.45000001,0.00013,2]
[327520301,1716150655436,156.62,0.00024329,30]
[327520302,1716150663842,150.5,0.0001958,15]
[327520303,1716150664584,150.5,0.0001957,15]
[327520304,1716150664951,150.5,0.0001956,15]
[327520305,1716150769132,534.61476436,0.0001245,2]
[327520306,1716150782902,150.5,0.0001958,15]
[327520307,1716150783029,2222.04647422,0.0001245,2]
[327520308,1716150783370,150.5,0.0001957,15]
[327520309,1716150783625,529.06734071,0.0001245,2]
[327520310,1716150783868,150.5,0.0001956,15]
[327520311,1716150791868,547544.82181235,0.0001245,2]
[327520312,1716150793408,20217.3428358,0.0001245,2]
[327520313,1716150800143,226.4976101,0.0001245,2]
[327520314,1716150806033,547544.82181235,0.0001245,2]
[327520315,1716150806978,164.06481566,0.00012353,2]
[327520316,1716150807414,20217.3428358,0.0001245,2]
[327520317,1716150819931,301.17,0.00010787,2]
[327520322,1716150825954,326970.34695851,0.0001245,2]
[327520323,1716150827415,15678.04260244,0.0001245,2]
[327520324,1716150871580,105120.18477664,0.00011667,2]
[327520326,1716150903024,150.5,0.0001959,15]
[327520327,1716150903512,150.5,0.0001958,15]
[327520328,1716150904030,150.5,0.0001957,15]
[327520329,1716150904139,150.5,0.0001959,15]
[327520330,1716150904720,150.5,0.0001958,15]
[327520331,1716150905520,152.37,0.0001957,15]
[327520332,1716150992015,23900.0,0.00012435,2]
[327520333,1716151068344,250.0,0.00012435,2]
[327520334,1716151081276,957.52,0.00012391,2]
[327520335,1716151120590,195.78,0.00024329,30]
[327520336,1716151136766,181.56,0.00012326,2]
[327520337,1716151143145,150.5,0.0001959,15]
[327520338,1716151143613,240.91,0.0001958,15]
[327520339,1716151317055,250.0,0.00012356,2]
[327520340,1716151381761,303.96,0.000105,2]
[327520341,1716151383693,200.0,0.00012418,2]
[327520342,1716151509504,150.0,0.00012438,2]
[327520343,1716151525357,-3089.78671898,0.00012451,2]
[327520344,1716151525378,-709.97817464,0.00012452,2]
[327520345,1716151525401,-150.0,0.00012453,2]
[327520346,1716151525424,-2800.23510638,0.00012454,2]
[327520347,1716151551408,800.0,0.00012418,2]
[327520348,1716151569526,638.01,0.00012418,2]
[327520349,1716151627476,158.33,9.9e-05,2]
[327520350,1716151672088,250.0,0.00012375,2]
[327520351,1716151679001,1823.73,0.00012375,2]
[327520352,1716151684498,179.46,0.00024329,30]
[327520353,1716151692099,164.06481566,0.00012355,2]
[327520354,1716151706175,234.23,0.00012375,2]
[327520371,1716151790474,322.86,0.00012379,2]
[327520377,1716151831801,-3535.11319169,0.00012454,2]
[327520378,1716151831813,-3391.0572534,0.00012454,2]
[327520379,1716151831830,-2428.9003,0.00012454,2]
[327520380,1716151831843,-2610.34372038,0.00012454,2]
[327520381,1716151831856,-20595.88890018,0.00012454,2]
[327520382,1716151831867,-173.43554886,0.00012455,2]
[327520383,1716151831877,-350.80735591,0.00012455,2]
[327520384,1716151831887,-1864.99842987,0.00012455,2]
[327520385,1716151831898,-3352.70235523,0.00012455,2]
[327520386,1716151831912,-547.73087551,0.00012455,2]
[327520387,1716151831927,-157.86,0.00012511,2]
[327520388,1716151831937,-200.0,0.00012523,2]
[327520389,1716151831950,-279.75020557,0.00012869,2]
[327520390,1716151831961,-628.26474,0.0001287,2]
[327520391,1716151831971,-156.78049294,0.00012899,2]
[327520392,1716151831985,-180.82567878,0.00012899,2]
[327520393,1716151831996,-170.04109646,0.00012899,2]
[327520394,1716151832005,-14172.98706997,0.000129,2]
[327520395,1716151832016,-252.44276212,0.000129,2]
[327520396,1716151832029,-331.305,0.000129,2]
[327520397,1716151832041,-2000.0,0.000129,2]
[327520398,1716151832052,-389.84087267,0.000129,2]
[327520399,1716151832064,-4180.81978059,0.000129,2]
[327520400,1716151832073,-1038.068327,0.000129,2]
[327520401,1716151832083,-1192.72617634,0.000129,2]
[327520402,1716151832092,-1192.7261763,0.000129,2]
[327520403,1716151832101,-1192.7261763,0.000129,2]
[327520404,1716151832110,-1192.7261763,0.000129,2]
[327520405,1716151832120,-1192.7261763,0.000129,2]
[327520406,1716151832129,-1192.7261763,0.000129,2]
[327520407,1716151832138,-27.10691662,0.000129,2]
[327520408,1716151832150,-1165.61925968,0.000129,2]
[327520409,1716151832159,-313.80647092,0.000129,2]
[327520412,1716151832175,-878.91970538,0.000129,2]
[327520414,1716151832184,-353.92431852,0.000129,2]
[327520415,1716151832194,-718.3388148,0.000129,2]
[327520418,1716151832205,-7347.7726265,0.000129,2]
[327520420,1716151832215,-4595.61650825,0.00012986,2]
[327520421,1716151832225,-1498.66,0.00012986,6]
[327520422,1716151832234,-191.95,0.00012986,2]
[327520423,1716151832245,-159.72,0.00012986,2]
[327520424,1716151832260,-262.05,0.00012986,2]
[327520425,1716151832269,-1104.77,0.00012986,2]
[327520426,1716151832278,-1371.33763917,0.00012997,2]
[327520427,1716151832287,-429.01678638,0.00012997,2]
[327520428,1716151832297,-815.71749102,0.00012997,2]
[327520429,1716151832305,-291.9883476,0.00012997,2]
[327520430,1716151832478,-266.24547519,0.00012998,2]
[327520431,1716151832488,-32938.30832225,0.00012998,2]
[327520432,1716151832498,-5272.68896387,0.00012998,2]
[327520433,1716151832507,-3283.77690883,0.00012999,2]
[327520434,1716151832516,-1074.61897376,0.00012999,3]
[327520435,1716151832525,-1082912.48364358,0.00012999,2]
[327520436,1716151832536,-896.40832532,0.00012999,2]
[327520437,1716151832554,-296.51056237,0.00012999,2]
[327520438,1716151832566,-2777.7159202,0.00012999,2]
[327520439,1716151832576,-6521.4119734,0.00012999,2]
[327520440,1716151832587,-270.43870298,0.00012999,2]
[327520447,1716151837867,-35192.766198,0.00012999,2]
[327520448,1716151837879,-633.84,0.00012999,2]
[327520449,1716151837947,-284.51111494,0.00012999,2]
[327520450,1716151837958,-2199.22889,0.00012999,2]
[327520451,1716151837971,-851.45751172,0.00012999,2]
[327520452,1716151837985,-648.5229323,0.00012999,2]
[327520453,1716151837997,-5746.78626034,0.00012999,2]
[327520454,1716151838008,-215585.16472521,0.00012999,2]
[327520455,1716151838041,-1050.0,0.00012999,2]
[327520456,1716151838052,-795.2682055,0.00012999,2]
[327520457,1716151838063,-1007.38297438,0.00012999,2]
[327520458,1716151838076,-10859.41738551,0.00012999,2]
[327520459,1716151838119,-206446.20621842,0.00012999,2]
[327520460,1716151838133,-1095.01554371,0.00012999,2]
[327520475,1716151839029,305.72,0.00011251,2]
[327520482,1716151840267,-673.41897108,0.00012999,2]
[327520483,1716151840278,-517.27872506,0.00012999,2]
[327520484,1716151840290,-425.50356137,0.00012999,2]
[327520529,1716151843051,-782.91,0.00012999,2]
[327520531,1716151843063,-469.54767,0.00012999,2]
[327520545,1716151843195,-502.77442162,0.00012999,2]
[327520546,1716151843274,-514.87734774,0.00012999,2]
[327520547,1716151843286,-34667.31416246,0.00012999,2]
[327520548,1716151843296,-208.03626817,0.00012999,2]
[327520549,1716151843306,-5869.22836401,0.00012999,2]
[327520550,1716151843315,-1685456.10214377,0.00013,2]
[327520551,1716151845768,-1266.56280338,0.00013,2]
[327520553,1716151845864,-441.92227681,0.00013,2]
[327520554,1716151846036,-376.29664655,0.00013,2]
[327520556,1716151879873,1412.27528136,0.00012348,2]
[327520557,1716151885040,9853.7319,0.00012354,2]
[327520558,1716151889583,2688.66763685,9.284e-05,2]
[327520559,1716152000306,-155.0,0.00012894,2]
[327520560,1716152000330,-237.28768542,0.00012894,2]
[327520561,1716152000353,-162.59702452,0.00012894,2]
[327520562,1716152000376,-405.93422196,0.00012895,2]
[327520563,1716152000398,-534.61476436,0.00012895,2]
[327520564,1716152000421,-1272.58154442,0.00012895,2]
[327520565,1716152000445,-623.47972891,0.00012896,2]
[327520566,1716152000467,-155.0,0.00012896,2]
[327520567,1716152000489,-204.60375302,0.00012897,2]
[327520568,1716152000510,-4277.12917432,0.00012899,2]
[327520569,1716152000533,-25076.88233096,0.000129,2]
[327520570,1716152000555,-396.44641002,0.000129,2]
[327520571,1716152000576,-561.78122799,0.000129,2]
[327520572,1716152000598,-6051.24166909,0.000129,2]
[327520573,1716152000619,-253.63032096,0.000129,2]
[327520574,1716152000640,-1800.16297063,0.00012985,2]
[327520575,1716152000662,-3841.17087883,0.00012986,2]
[327520576,1716152000683,-719.70142776,0.00012996,2]
[327520577,1716152000705,-150.0,0.00012997,2]
[327520578,1716152000727,-213.58249005,0.00012997,2]
[327520579,1716152000749,-5555.9306126,0.00012997,2]
[327520580,1716152000771,-302.0,0.00012997,2]
[327520581,1716152000794,-321.50775091,0.00012998,2]
[327520582,1716152000815,-1789.09722972,0.00012998,2]
[327520583,1716152000837,-155.0,0.00012998,2]
[327520584,1716152000860,-360.9493394,0.00012998,2]
[327520585,1716152000882,-155.0,0.00012998,2]
[327520586,1716152000905,-409.61241196,0.00012998,2]
[327520587,1716152000927,-204.80318837,0.00012998,2]
[327520588,1716152000951,-1063.64659674,0.00012998,2]
[327520589,1716152000974,-344.33524362,0.00012998,2]
[327520590,1716152000996,-155.0,0.00012998,2]
[327520591,1716152001018,-234.1769208,0.00012998,2]
[327520592,1716152001043,-324.77118581,0.00012998,2]
[327520593,1716152001065,-7514.47016042,0.00012998,2]
[327520594,1716152001086,-155.41833568,0.00012998,2]
[327520595,1716152001108,-3283.77690883,0.00012998,2]
[327520596,1716152001129,-208.17791052,0.00012998,2]
[327520597,1716152001150,-574.34871661,0.00012998,2]
[327520598,1716152001171,-172.77546027,0.00012998,2]
[327520599,1716152001364,-206.88313584,0.00012998,2]
[327520600,1716152001386,-266.24547519,0.00012998,2]
[327520601,1716152001409,-305.91997853,0.00012998,2]
[327520602,1716152001430,-155.96026536,0.00012998,2]
[327520603,1716152001452,-155.1772459,0.00012998,2]
[327520604,1716152001473,-155.0,0.00012998,2]
[327520605,1716152001494,-155.78373103,0.00012998,2]
[327520606,1716152001517,-156.08637497,0.00012998,2]
[327520607,1716152001541,-156.15446369,0.00012998,2]
[327520608,1716152001564,-309.26123676,0.00012998,2]
[327520609,1716152001588,-314.81387529,0.00012998,2]
[327520610,1716152001610,-3089.166756,0.00012998,2]
[327520611,1716152001637,-712.69569483,0.00012998,2]
[327520612,1716152001660,-320.0247412,0.00012998,2]
[327520613,1716152001683,-200.21998404,0.00012998,2]
[327520614,1716152001704,-201.62835488,0.00012998,2]
[327520615,1716152001727,-171.69691877,0.00012998,2]
[327520616,1716152001751,-617.91342405,0.00012998,2]
[327520617,1716152001775,-427.2731236,0.00012998,2]
[327520618,1716152001798,-201.16934535,0.00012998,2]
[327520619,1716152001818,-157.60689553,0.00012998,2]
[327520620,1716152001840,-307.52781641,0.00012998,2]
[327520621,1716152001861,-199.62095941,0.00012998,2]
[327520622,1716152001882,-155.31745909,0.00012998,2]
[327520623,1716152001903,-155.0,0.00012998,2]
[327520624,1716152001926,-2221.6315313,0.00012998,2]
[327520625,1716152001952,-422.45066744,0.00012998,2]
[327520626,1716152001977,-166.81757453,0.00012998,2]
[327520627,1716152002001,-1212.0770862,0.00012998,2]
[327520628,1716152002024,-155.0,0.00012998,2]
[327520629,1716152002047,-848.00767163,0.00012998,2]
[327520630,1716152002070,-155.0,0.00012998,2]
[327520631,1716152002091,-305.72421467,0.00012998,2]
[327520632,1716152002118,-155.09581377,0.00012998,2]
[327520633,1716152002140,-789.3712268,0.00012998,2]
[327520634,1716152002163,-202.23422368,0.00012998,2]
[327520635,1716152002185,-181.49799406,0.00012998,2]
[327520636,1716152002207,-165.20489312,0.00012998,2]
[327520637,1716152002230,-201.64761651,0.00012998,2]
[327520638,1716152002254,-200.34341848,0.00012998,2]
[327520639,1716152002277,-198.41706201,0.00012998,2]
[327520640,1716152002301,-162.02770507,0.00012998,2]
[327520641,1716152002323,-643.1326905,0.00012998,2]
[327520642,1716152002344,-162.06661065,0.00012998,2]
[327520643,1716152002367,-223.69513029,0.00012998,2]
[327520644,1716152002390,-782.13638794,0.00012998,2]
[327520645,1716152002413,-165.39781373,0.00012998,2]
[327520646,1716152002436,-356.13965081,0.00012998,2]
[327520647,1716152002458,-190.95082003,0.00012998,2]
[327520648,1716152002482,-656.27275998,0.00012999,2]
[327520649,1716152002505,-155.0,0.00012999,2]
[327520650,1716152002528,-155.0,0.00012999,2]
[327520651,1716152002551,-2185.6405926,0.00012999,2]
[327520652,1716152002575,-32950.245993,0.00012999,2]
[327520654,1716152140137,1095.84,0.00012153,2]
[327520655,1716152151495,1236.22,0.00024329,30]
[327520658,1716152178334,20556.6,0.00012173,2]
[327520659,1716152179388,250.0,0.00012173,2]
[327520660,1716152191207,238.4,0.00012216,2]
[327520661,1716152194250,1377.29078847,0.00012153,2]
[327520662,1716152216166,828.53627732,0.00012153,2]
[327520663,1716152256528,155.28,0.00012116,2]
[327520664,1716152256772,155.28,0.00012125,2]
[327520665,1716152256984,155.28,0.00012133,2]
[327520666,1716152257192,155.28,0.00012142,2]
[327520667,1716152257430,155.28,0.00012151,2]
[327520668,1716152257691,155.28,0.00012159,2]
[327520669,1716152257910,155.28,0.00012168,2]
[327520670,1716152258099,155.28,0.00012176,2]
[327520671,1716152266685,798.73,0.00012116,2]
[327520672,1716152338719,260.68518268,0.0001241,2]
[327520673,1716152343634,375.24,0.00010237,2]
[327520674,1716152343796,200.0,0.00012155,2]
[327520675,1716152458679,521.37036536,0.0001239,2]
[327520676,1716152566575,-155.0,0.00012487,2]
[327520677,1716152566601,-375.24,0.00012501,2]
[327520678,1716152566626,-1564.36069654,0.00012759,2]
[327520679,1716152566650,-150.0,0.00012898,2]
[327520680,1716152631940,730.22,0.00012619,2]
[327520681,1716152633940,350.67930346,0.00012898,2]
[327520682,1716152634933,1133.2,0.00024329,30]
[327520683,1716152640284,250.0,0.00012232,2]
[327520684,1716152713603,1000.0,0.00012165,2]
[327520685,1716152915321,337.71,0.00010067,2]
[327520686,1716152915517,337.71,0.00012331,2]
[327520702,1716153032125,-155.0,0.00012534,2]
[327520704,1716153032135,-543.48,0.00012536,2]
[327520705,1716153032144,-543.48,0.0001257,2]
[327520707,1716153032154,-543.48,0.00012605,2]
[327520709,1716153032164,-543.48,0.00012639,2]
[327520710,1716153032173,-543.48,0.00012673,2]
[327520712,1716153032182,-543.48,0.00012708,2]
[327520714,1716153032191,-543.48,0.00012742,2]
[327520715,1716153032200,-543.48,0.00012776,2]
[327520716,1716153032209,-175.33,0.0001278,2]
[327520717,1716153032218,-935.92,0.00012811,2]
[327520718,1716153032227,-543.48,0.00012811,2]
[327520719,1716153032236,-29.83831029,0.00012845,2]
[327520721,1716153032248,-513.64168971,0.00012845,2]
[327520723,1716153032257,-1916.66666,0.0001287,2]
[327520725,1716153032267,-543.48,0.0001288,2]
[327520727,1716153032276,-3481.24225811,0.00012898,2]
[327520728,1716153032285,-8043.54221861,0.00012899,2]
[327520729,1716153032296,-1076.81030007,0.00012899,2]
[327520730,1716153032307,-23482.48197186,0.00012899,2]
[327520731,1716153032318,-929.24211763,0.00012899,2]
[327520732,1716153032329,-5628.32979183,0.00012899,2]
[327520733,1716153032344,-94548.8154,0.00012899,2]
[327520734,1716153032353,-313.68803138,0.000129,2]
[327520735,1716153032363,-348.28022188,0.000129,2]
[327520736,1716153032372,-561.78122799,0.000129,2]
[327520737,1716153032383,-6051.24166909,0.000129,2]
[327520738,1716153032391,-543.48,0.00012914,2]
[327520739,1716153032401,-603.0143,0.00012935,2]
[327520740,1716153032410,-543.48,0.00012948,2]
[327520741,1716153032424,-543.48,0.00012983,2]
[327520742,1716153032434,-7859.15,0.00012988,2]
[327520743,1716153032442,-42138.87569183,0.00012996,2]
[327520744,1716153032453,-338.584364,0.00012996,2]
[327520745,1716153032471,-4513.25437517,0.00012996,2]
[327520746,1716153032483,-155.0,0.00012997,2]
[327520747,1716153032493,-408.86277335,0.00012997,2]
[327520748,1716153032502,-200.09244768,0.00012997,2]
[327520749,1716153032511,-170.4434317,0.00012997,2]
[327520750,1716153032520,-155.0,0.00012997,2]
[327520751,1716153032530,-155.0,0.00012997,2]
[327520752,1716153032540,-266.24547519,0.00012997,2]
[327520753,1716153032549,-234.1769208,0.00012997,2]
[327520754,1716153032558,-499.99,0.00012997,2]
[327520755,1716153032568,-201.6842758,0.00012998,2]
[327520756,1716153032577,-185.00634686,0.00012998,2]
[327520757,1716153032587,-740.27100826,0.00012998,2]
[327520758,1716153032596,-405.48134435,0.00012998,2]
[327520759,1716153032606,-162.57952603,0.00012998,2]
[327520760,1716153032615,-4270.43096135,0.00012998,2]
[327520761,1716153032624,-237.66446803,0.00012998,2]
[327520762,1716153032633,-155.0,0.00012998,2]
[327520763,1716153032644,-411377.76157942,0.00012999,2]
[327520764,1716153032655,-3002.17711625,0.00012999,2]
[327520765,1716153032667,-551.24148495,0.00012999,2]
[327520766,1716153032732,-279.27836977,0.00012999,2]
[327520768,1716153038208,-11627.429465,0.00012999,2]
[327520769,1716153038220,-14923.583495,0.00012999,2]
[327520770,1716153038238,-3209.94494954,0.00012999,2]
[327520771,1716153038251,-4962.52051354,0.00012999,2]
[327520772,1716153038269,-4134.12178953,0.00012999,2]
[327520773,1716153038302,-830.70888469,0.00012999,2]
[327520774,1716153038335,-6101.07978838,0.00012999,2]
[327520775,1716153038369,-3059.30000001,0.00012999,2]
[327520776,1716153038484,-1599.77159946,0.00012999,2]
[327520777,1716153038496,-607.5411053,0.00012999,2]
[327520785,1716153040314,-3940.47964354,0.00012999,2]
[327520787,1716153040327,-27683.2849328,0.00012999,2]
[327520788,1716153040337,-826.1183495,0.00012999,2]
[327520789,1716153040350,-501.0,0.00013,2]
[327520791,1716153040360,-318.65,0.00013,2]
[327520792,1716153040369,-301526.21647885,0.00013,2]
[327520793,1716153040386,-13543.89278176,0.00013,2]
[327520794,1716153040670,-611.50840471,0.00013,2]
[327520795,1716153040710,-1634178.77651905,0.00013,2]
[327520796,1716153040721,-467.26280354,0.00013,2]
[327520797,1716153040732,-1356.73969651,0.00013,2]
[327520798,1716153040745,-1606.41088121,0.00013,2]
[327520833,1716153043452,-731320.66114536,0.00013,2]
[327520834,1716153043464,-537.16417105,0.00013,2]
[327520835,1716153043486,-1318.29435256,0.00013,2]
[327520836,1716153043498,-3959.850002,0.00013,2]
[327520837,1716153043619,-11451.47465665,0.00013,2]
[327520838,1716153043740,-2759.5004898,0.00013,2]
[327520839,1716153043753,-66104.90974479,0.00013,2]
[327520840,1716153043764,-6140.91867397,0.00013,2]
[327520844,1716153046093,-2596.52065356,0.00013,2]
[327520846,1716153046105,-13561.47766172,0.00013,2]
[327520848,1716153046116,-47320.41254121,0.00013,2]
[327520849,1716153046135,-1934.15722085,0.00013,2]
[327520850,1716153046280,-217674.59535273,0.00013,2]
[327520851,1716153046292,-426693.90033598,0.00013,2]
[327520852,1716153046326,-1482.0994527,0.00013,2]
[327520853,1716153046338,-823.29,0.00013,2]
[327520857,1716153047161,-48308.28552073,0.00013,2]
[327520860,1716153047173,-29088.65883956,0.00013,2]
[327520861,1716153047184,-1034.75563618,0.00013,2]
[327520862,1716153047195,-577.07782684,0.00013,2]
[327520863,1716153047207,-5852.69943588,0.00013,2]
[327520864,1716153047218,-4803.45941549,0.00013,2]
[327520865,1716153047229,-14806.0888339,0.00013,2]
[327520866,1716153071656,200.0,0.00012,4]
[327520867,1716153073784,500.0,0.000121,4]
[327520868,1716153075940,700.0,0.000122,4]
[327520869,1716153078078,1000.0,0.000123,4]
[327520870,1716153080187,1200.0,0.000124,4]
[327520871,1716153101524,1038.76,0.00024329,30]
[327520872,1716153101780,600.0,9.3e-05,2]
[327520873,1716153102589,250.0,0.00012228,2]
[327520874,1716153115299,16165.43363979,0.000124,2]
[327520878,1716153136733,181.56,0.00012187,2]
[327520879,1716153145663,1019.06,0.00012187,2]
[327520880,1716153147470,2604.3520118,0.00012152,2]
[327520881,1716153161468,2603.64713106,0.00012,2]
[327520882,1716153183428,622.22,0.0003,120]
[327520883,1716153219920,200.0,0.00012074,2]
[327520884,1716153333785,300.0,9.056e-05,2]
[327520885,1716153375098,303.93,0.00010152,2]
[327520886,1716153375323,303.93,0.00012416,2]
[327520887,1716153472132,163.04,0.00012117,2]
[327520888,1716153472367,163.04,0.0001215,2]
[327520889,1716153472571,163.04,0.00012184,2]
[327520890,1716153472813,163.04,0.00012217,2]
[327520891,1716153473024,163.04,0.0001225,2]
[327520892,1716153473245,163.04,0.00012283,2]
[327520893,1716153473467,163.04,0.00012317,2]
[327520894,1716153473695,163.04,0.0001235,2]
[327520895,1716153474064,163.04,0.00012383,2]
[327520896,1716153474119,163.04,0.00012416,2]
[327520897,1716153474335,163.04,0.0001245,2]
[327520898,1716153576115,1007.28,0.00024329,30]
[327520899,1716153592528,250.0,0.00011825,2]
[327520900,1716153597092,187.38,0.00011854,2]
[327520901,1716153612159,679.04,0.00011854,2]
[327520902,1716153708710,840.0,0.00011854,2]
[327520903,1716153769114,252.29285456,0.00011795,2]
[327520904,1716153817668,1655.49,0.00011828,2]
[327520905,1716153846476,314.88,9.91e-05,2]
[327520906,1716153846659,314.88,0.00012174,2]
[327520907,1716153869986,-2000.0,0.0003442,30]
[327520908,1716153870009,-1003.4,0.0003442,30]
[327520909,1716153870032,-971.0,0.0003442,30]
[327520910,1716153870054,-687.0,0.0003442,30]
[327520911,1716153870076,-189.0,0.0003442,30]
[327520912,1716153870099,-189.0,0.0003442,30]
[327520913,1716153870121,-2977.0,0.0003442,30]
[327520914,1716153870143,-189.0,0.0003442,30]
[327520915,1716153870166,-150.077194,0.0003442,30]
[327520916,1716153880599,-1007.28,0.00027318,30]
[327520917,1716153880637,-1500.0,0.00030137,30]
[327520918,1716153880662,-1007.28,0.00030306,30]
[327520919,1716153880703,-1602.93844467,0.000329,30]
[327520920,1716153880727,-1841.96,0.00033151,120]
[327520921,1716153880750,-1007.28,0.00033295,30]
[327520922,1716153880780,-600.0,0.000345,120]
[327520923,1716153880809,-157.052005,0.00036148,36]
[327520924,1716153880835,-157.052005,0.00036248,34]
[327520925,1716153880858,-1007.28,0.00036284,30]
[327520926,1716153880885,-157.052005,0.00036348,36]
[327520927,1716153880909,-157.052005,0.00036448,36]
[327520928,1716153881109,-157.052005,0.00036748,32]
[327520929,1716153881136,-157.052006,0.00037048,38]
[327520930,1716153881164,-157.052005,0.00037148,34]
[327520931,1716153881191,-157.052005,0.00037248,54]
[327520932,1716153881215,-157.052005,0.00037348,36]
[327520933,1716153881242,-157.052005,0.00037448,36]
[327520934,1716153881269,-157.052005,0.00037748,34]
[327520935,1716153881295,-157.052006,0.00038048,42]
[327520936,1716153881319,-157.052005,0.00038148,36]
[327520937,1716153881345,-157.052005,0.00038248,56]
[327520938,1716153881370,-157.052005,0.00038348,38]
[327520939,1716153881394,-157.052005,0.00038448,38]
[327520940,1716153881420,-157.052005,0.00038748,40]
[327520941,1716153881446,-157.052006,0.00039048,44]
[327520942,1716153881473,-157.052005,0.00039148,42]
[327520943,1716153881498,-157.052005,0.00039248,58]
[327520944,1716153881520,-1007.28,0.00039273,30]
[327520945,1716153881545,-157.052005,0.00039348,38]
[327520946,1716153881571,-157.052005,0.00039448,42]
[327520947,1716153881597,-157.052005,0.00039748,40]
[327520948,1716153881625,-1936.63544651,0.00039876,31]
[327520949,1716153881652,-50000.0,0.0004,30]
[327520950,1716153881676,-150000.0,0.0004,30]
[327520951,1716153881701,-3277.82052063,0.0004,30]
[327520952,1716153881724,-513.3881285,0.00040047,30]
[327520953,1716153881749,-157.052006,0.00040048,44]
[327520954,1716153881771,-614.59755052,0.00040072,30]
[327520955,1716153881794,-167.87252583,0.00040092,30]
[327520956,1716153881825,-157.052005,0.00040148,42]
[327520957,1716153881847,-168.20983364,0.00040218,30]
[327520958,1716153881870,-152.99399679,0.00040238,30]
[327520959,1716153881893,-153.90576893,0.00040292,30]
[327520960,1716153881920,-157.052005,0.00040348,40]
[327520961,1716153881943,-162.93459019,0.00040351,30]
[327520962,1716153881965,-154.51679898,0.00040415,30]
[327520963,1716153881989,-1045.92388606,0.00040417,30]
[327520964,1716153882012,-414.02761191,0.00040446,30]
[327520965,1716153882040,-157.052005,0.00040448,40]
[327520966,1716153882063,-152.99399679,0.00040467,30]
[327520967,1716153882087,-168.20983364,0.00040497,30]
[327520968,1716153882110,-158.96537893,0.00040531,30]
[327520969,1716153882133,-614.59755052,0.00040532,30]
[327520970,1716153882157,-195.29860773,0.00040552,30]
[327520971,1716153882181,-157.66903106,0.00040579,30]
[327520972,1716153882205,-165.52611962,0.00040627,30]
[327520973,1716153882230,-2487.32294274,0.00040718,30]
[327520974,1716153882253,-166.66666666,0.00040734,30]
[327520975,1716153882280,-157.052005,0.00040748,42]
[327520976,1716153882304,-158.50296534,0.00040774,30]
[327520977,1716153882326,-260.05628623,0.00040799,30]
[327520978,1716153882349,-162.93459019,0.00040839,30]
[327520979,1716153882372,-279.3041226,0.00040877,30]
[327520980,1716153882396,-163.92345764,0.00040887,30]
[327520981,1716153882420,-169.00998554,0.00040889,30]
[327520982,1716153882445,-614.59755052,0.00040905,30]
[327520983,1716153882468,-162.0,0.00040914,30]
[327520984,1716153882492,-614.59755052,0.00040916,30]
[327520985,1716153882515,-158.96537893,0.0004097,30]
[327520986,1716153882540,-50000.0,0.00041,31]
[327520987,1716153882563,-508.01503466,0.00041,120]
[327520988,1716153882588,-157.052005,0.00041048,50]
[327520989,1716153882611,-260.05628623,0.00041093,30]
[327520990,1716153882640,-2487.32294274,0.00041131,30]
[327520991,1716153882667,-157.052005,0.00041148,44]
[327520992,1716153882695,-154.51679898,0.00041184,30]
[327520993,1716153882719,-168.20983364,0.00041214,30]
[327520994,1716153882742,-1139.44709789,0.00041231,30]